bitfinex/quotes_SOLUSD_20250207
["timestamp","ask_amount","ask_price","bid_price","bid_amount"]
[1738907059181,0.03,193.6,193.59,233.40502922]
[1738907059182,0.0001,193.6,193.59,233.40502922]
[1738907059880,0.0001,193.6,193.59,232.40502922]
[1738907060288,0.0001,193.6,193.59,238.5761112]
[1738907063187,0.0001,193.6,193.59,238.6391112]
[1738907065479,0.0001,193.6,193.59,238.2626412]
[1738907065807,0.0001,193.6,193.59,212.95910876]
[1738907066887,0.0001,193.6,193.59,202.9285]
[1738907067782,0.0001,193.6,193.59,226.72923244]
[1738907069999,0.0001,193.6,193.59,230.57824179]
[1738907073210,0.0001,193.6,193.59,226.72923244]
[1738907074407,0.0001,193.6,193.59,226.85472244]
[1738907075098,0.0001,193.6,193.59,230.70233286]
[1738907075403,0.0001,193.6,193.59,232.95331286]
[1738907079506,0.0001,193.6,193.59,220.31344895]
[1738907080012,0.0001,193.6,193.59,230.57684286]
[1738907080897,0.0001,193.6,193.59,226.72923244]
[1738907090119,0.0001,193.6,193.59,230.58225443]
[1738907092619,0.0001,193.6,193.59,230.70774443]
[1738907094724,0.0001,193.6,193.59,230.95872443]
[1738907095515,0.0001,193.6,193.59,231.95872443]
[1738907095723,0.0001,193.6,193.59,232.95872443]
[1738907096301,0.0001,193.6,193.59,230.95872443]
[1738907096820,0.03,193.67,193.6,13.91380853]
[1738907097020,0.03,193.67,193.63,13.53733853]
[1738907098124,0.03,193.67,193.64,5.1642]
[1738907098312,0.03,193.67,193.64,121.2642]
[1738907099020,0.03,193.67,193.65,3.85302199]
[1738907099907,0.03,193.67,193.65,9.01672199]
[1738907101826,0.03,193.67,193.65,5.1637]
[1738907104029,0.03,193.67,193.65,121.2637]
[1738907105426,0.03,193.67,193.66,23.80073244]
[1738907105627,0.03,193.67,193.66,24.57514011]
[1738907106138,0.03,193.67,193.66,222.40063011]
[1738907106326,0.03,193.67,193.66,221.62622244]
[1738907106629,0.0001,193.67,193.66,232.90857338]
[1738907106822,0.0001,193.68,193.67,13.91380853]
[1738907107128,0.0001,193.68,193.67,24.95134572]
[1738907107427,0.0001,193.68,193.67,224.65134572]
[1738907107627,0.0001,193.68,193.67,223.87720244]
[1738907108208,0.0001,193.68,193.67,227.74497338]
[1738907108826,0.0001,193.68,193.67,248.43837338]
[1738907112632,0.0001,193.68,193.67,230.90837338]
[1738907112833,0.0001,193.68,193.67,232.90837338]
[1738907113132,0.0001,193.68,193.67,230.90837338]
[1738907113927,0.0001,193.68,193.67,233.21955472]
[1738907114423,0.0001,193.68,193.67,234.21955472]
[1738907122023,0.0001,193.68,193.67,230.53190338]
[1738907122229,0.0001,193.68,193.67,85.46777094]
[1738907122534,10.26349391,193.68,193.67,85.53077094]
[1738907123323,0.0001,193.68,193.67,85.53077094]
[1738907125852,10.26349391,193.68,193.67,85.53077094]
[1738907126040,10.26349391,193.68,193.67,3.93077094]
[1738907126447,10.26349391,193.68,193.67,0.063]
[1738907127352,0.0001,193.68,193.67,0.063]
[1738907127559,0.0001,193.68,193.67,10.32639391]
[1738907127768,0.0001,193.68,193.67,222.46349201]
[1738907128057,0.0001,193.68,193.67,221.68922244]
[1738907128742,0.0001,193.68,193.67,208.02639391]
[1738907129133,0.0001,193.68,193.67,197.763]
[1738907129337,0.0001,193.68,193.67,81.663]
[1738907133849,0.0001,193.68,193.67,0.063]
[1738907134240,0.0001,193.68,193.66,116.1]
[1738907134241,8.7361,193.61,193.57,0.063]
[1738907134455,20.12549,193.58,193.57,0.063]
[1738907134635,20.12549,193.58,193.53,0.063]
[1738907134636,0.12549,193.55,193.53,0.063]
[1738907134957,20.0,193.56,193.53,0.063]
[1738907135459,10.26339391,193.54,193.53,0.063]
[1738907136765,36.0464734,193.54,193.53,0.063]
[1738907137859,16.0464734,193.55,193.53,0.063]
[1738907138173,16.0464734,193.54,193.53,0.063]
[1738907139067,36.0464734,193.54,193.53,0.063]
[1738907139462,16.0464734,193.57,193.53,0.063]
[1738907139662,16.0464734,193.57,193.48,216.28004853]
[1738907139663,1.0,193.5,193.47,0.063]
[1738907139844,1.0,193.48,193.47,0.063]
[1738907140059,20.0,193.43,193.4,0.063]
[1738907141368,20.12549,193.43,193.4,0.063]
[1738907141578,5.29549,193.42,193.4,0.063]
[1738907141746,32.5989222,193.41,193.39,0.063]
[1738907141952,84.3439268,193.4,193.37,0.063]
[1738907142271,0.12549,193.38,193.37,0.063]
[1738907142446,0.12549,193.38,193.33,0.063]
[1738907142651,16.0464734,193.34,193.33,0.063]
[1738907145281,16.0464734,193.28,193.27,0.063]
[1738907149561,16.0464734,193.31,193.27,0.063]
[1738907149767,16.0464734,193.28,193.27,0.063]
[1738907150769,12.1434854,193.34,193.27,0.063]
[1738907150770,16.0464734,193.29,193.27,0.063]
[1738907151659,16.0464734,193.3,193.27,0.063]
[1738907151866,16.0464734,193.29,193.27,0.063]
[1738907152273,16.0464734,193.28,193.27,0.063]
[1738907153168,16.0464734,193.29,193.27,0.063]
[1738907153970,16.0464734,193.28,193.27,0.063]
[1738907156971,16.0464734,193.29,193.27,0.063]
[1738907157175,16.0464734,193.3,193.27,0.063]
[1738907158490,16.0464734,193.31,193.27,0.18849]
[1738907158685,16.0464734,193.33,193.28,0.12549]
[1738907158881,16.0464734,193.34,193.29,13.53733853]
[1738907159983,16.0464734,193.34,193.29,129.63733853]
[1738907160566,16.0464734,193.3,193.29,116.1]
[1738907161589,16.0464734,193.31,193.29,116.1]
[1738907162099,16.0464734,193.32,193.29,121.2734]
[1738907162271,16.0464734,193.34,193.29,121.2734]
[1738907163185,1.6004,193.38,193.27,0.063]
[1738907163380,1.0,193.23,193.22,0.063]
[1738907163583,8.71257,193.18,193.17,0.0001]
[1738907163776,65.78831853,193.14,193.13,0.063]
[1738907163991,1.0,193.13,193.09,0.063]
[1738907164175,5.5580854,193.14,193.09,0.063]
[1738907164494,16.0464734,193.1,193.09,0.063]
[1738907165605,32.2184368,193.1,193.09,0.063]
[1738907165805,32.5989222,193.1,193.09,0.063]
[1738907165995,63.7244122,193.1,193.09,0.063]
[1738907166222,20.12549,193.07,193.01,0.063]
[1738907166499,36.0464734,193.07,193.01,0.063]
[1738907166692,45.80529978,193.07,193.01,0.063]
[1738907167205,45.80529978,193.07,193.01,116.163]
[1738907167382,45.80529978,193.07,193.02,5.1808]
[1738907171690,25.80529978,193.08,193.03,13.53733853]
[1738907171879,25.80529978,193.08,193.03,129.63733853]
[1738907172281,25.80529978,193.07,193.03,129.63733853]
[1738907172482,25.80529978,193.07,193.03,116.1]
[1738907172899,25.80529978,193.07,193.02,5.1808]
[1738907173893,25.80529978,193.07,193.03,13.53733853]
[1738907174104,20.0,193.07,193.03,13.53733853]
[1738907174899,20.0,193.07,193.03,129.63733853]
[1738907175297,20.0,193.07,193.01,0.0001]
[1738907175298,2.37647,193.02,193.01,0.0001]
[1738907175606,20.0,192.99,192.87,116.1]
[1738907175904,25.80529978,192.91,192.87,116.1]
[1738907176280,25.80529978,192.91,192.88,5.1845]
[1738907176888,25.80529978,192.91,192.89,13.41184853]
[1738907177082,25.80529978,192.9,192.88,5.1845]
[1738907177287,25.80529978,192.89,192.88,5.1845]
[1738907177598,20.0,192.87,192.86,0.063]
[1738907177807,45.80529978,192.87,192.86,0.063]
[1738907181491,45.80529978,192.87,192.79,116.1]
[1738907181492,25.80529978,192.8,192.78,121.287]
[1738907181695,25.80529978,192.79,192.76,5.1875]
[1738907181898,25.80529978,192.78,192.76,121.2875]
[1738907184189,25.80529978,192.77,192.73,116.1]
[1738907184388,25.80529978,192.8,192.73,116.1]
[1738907184389,25.80529978,192.74,192.73,5.1883]
[1738907184600,25.80529978,192.74,192.71,5.1889]
[1738907184801,25.80529978,192.72,192.71,5.1889]
[1738907184998,25.80529978,192.76,192.71,121.2889]
[1738907186192,25.80529978,192.76,192.72,13.41184853]
[1738907186397,25.80529978,192.77,192.73,5.1886]
[1738907187201,25.80529978,192.75,192.71,121.2889]
[1738907187421,25.80529978,192.75,192.71,5.1889]
[1738907188627,25.80529978,192.75,192.71,121.2889]
[1738907188795,20.0,192.76,192.71,121.2889]
[1738907190230,25.80529978,192.77,192.71,121.2889]
[1738907191598,25.80529978,192.77,192.73,5.1886]
[1738907191795,20.0,192.76,192.73,5.1886]
[1738907192005,20.0,192.76,192.73,121.2886]
[1738907192804,25.80529978,192.79,192.74,13.41184853]
[1738907193008,20.0,192.78,192.74,39.21714831]
[1738907193216,25.80529978,192.82,192.76,13.41184853]
[1738907193410,25.80529978,192.83,192.76,155.31714831]
[1738907193612,25.80529978,192.88,192.81,25.80529978]
[1738907193825,25.80529978,192.88,192.82,13.41184853]
[1738907194524,25.80529978,192.89,192.82,155.31714831]
[1738907195104,25.80529978,192.91,192.84,13.41184853]
[1738907195518,20.0,192.87,192.84,13.41184853]
[1738907195707,0.03,192.86,192.84,13.41184853]
[1738907196307,0.03,192.86,192.85,5.1853]
[1738907196608,0.03,192.86,192.85,121.2853]
[1738907199724,0.03,192.86,192.85,134.69714853]
[1738907202511,25.76690318,192.91,192.85,134.69714853]
[1738907205434,25.76690318,192.91,192.86,13.53733853]
[1738907205635,45.80529978,192.93,192.87,18.1468]
[1738907208324,45.83529978,192.93,192.87,18.1468]
[1738907210724,45.83529978,192.93,192.87,134.2468]
[1738907212643,36.18003528,192.93,192.87,5.1848]
[1738907212823,16.15003528,192.91,192.87,5.1848]
[1738907213938,16.15003528,192.89,192.87,5.1848]
[1738907214347,16.15003528,192.88,192.87,5.1848]
[1738907214539,16.15003528,192.89,192.87,5.1848]
[1738907216853,16.15003528,192.91,192.87,5.1848]
[1738907220359,20.0,192.92,192.87,5.1848]
[1738907221058,16.15003528,192.89,192.87,5.1848]
[1738907221632,16.15003528,192.89,192.86,116.1]
[1738907221836,0.03,192.93,192.81,16.15003528]
[1738907221837,16.15003528,192.87,192.81,121.2864]
[1738907222153,16.15003528,192.84,192.81,5.1864]
[1738907222353,16.15003528,192.84,192.79,5.1869]
[1738907222671,16.15003528,192.81,192.79,5.1869]
[1738907223373,16.15003528,192.81,192.77,5.1875]
[1738907223581,16.15003528,192.8,192.77,5.1875]
[1738907223750,16.15003528,192.79,192.74,5.1883]
[1738907223939,0.12549,192.85,192.74,5.1883]
[1738907223940,16.15003528,192.78,192.74,5.1883]
[1738907224347,16.15003528,192.78,192.73,18.66344853]
[1738907225738,16.15003528,192.79,192.73,18.66344853]
[1738907228067,16.15003528,192.85,192.78,16.15003528]
[1738907228273,16.15003528,192.86,192.79,16.15003528]
[1738907228469,24.29383528,192.87,192.8,16.15003528]
[1738907228959,20.0,192.84,192.79,16.15003528]
[1738907229172,16.15003528,192.85,192.78,29.56188381]
[1738907229347,16.15003528,192.85,192.78,145.66188381]
[1738907229547,16.15003528,192.85,192.78,132.25003528]
[1738907229748,16.15003528,192.85,192.78,116.1]
[1738907230063,16.15003528,192.8,192.75,5.188]
[1738907230270,36.15003528,192.8,192.75,5.188]
[1738907231058,36.15003528,192.8,192.74,5.1883]
[1738907232166,20.0,192.8,192.74,21.33833528]
[1738907232363,20.0,192.8,192.75,16.15003528]
[1738907232670,20.0,192.8,192.76,16.15003528]
[1738907233160,16.15003528,192.83,192.76,16.15003528]
[1738907233568,16.15003528,192.83,192.77,5.1875]
[1738907234644,16.15003528,192.79,192.74,5.1883]
[1738907234848,16.15003528,192.78,192.72,121.2886]
[1738907235370,16.15003528,192.79,192.72,121.2886]
[1738907236466,16.15003528,192.79,192.72,137.43863528]
[1738907237069,16.15003528,192.8,192.72,137.43863528]
[1738907237245,20.0,192.77,192.72,21.33863528]
[1738907237450,36.15003528,192.75,192.68,21.33993528]
[1738907237867,20.0,192.75,192.68,21.33993528]
[1738907238053,36.15003528,192.79,192.72,16.15003528]
[1738907238364,16.15003528,192.78,192.7,29.56188381]
[1738907238569,16.15003528,192.77,192.69,16.15003528]
[1738907238767,16.15003528,192.75,192.68,149.31473528]
[1738907239077,16.15003528,192.74,192.68,5.1899]
[1738907240267,7.8559,192.78,192.69,13.41184853]
[1738907240268,20.0,192.75,192.69,13.41184853]
[1738907240577,20.0,192.75,192.69,29.56188381]
[1738907240877,20.0,192.75,192.69,13.41184853]
[1738907241260,20.0,192.75,192.68,21.33993528]
[1738907241261,36.15003528,192.75,192.68,21.33993528]
[1738907241458,36.15003528,192.75,192.68,5.1899]
[1738907241459,16.15003528,192.74,192.68,5.1899]
[1738907241865,36.15003528,192.75,192.68,21.33993528]
[1738907242457,16.15003528,192.74,192.68,5.1899]
[1738907242869,36.15003528,192.75,192.68,21.33993528]
[1738907243271,36.15003528,192.72,192.67,5.2532]
[1738907243476,16.15003528,192.68,192.67,0.063]
[1738907243973,24.05413528,192.68,192.67,0.063]
[1738907246059,37.79793528,192.68,192.67,0.063]
[1738907246262,17.79793528,192.68,192.67,0.063]
[1738907246891,36.15003528,192.68,192.67,0.063]
[1738907247074,16.15003528,192.68,192.67,0.063]
[1738907247575,21.33993528,192.68,192.67,0.063]
[1738907247887,41.46542528,192.68,192.67,0.063]
[1738907248061,22.71640528,192.68,192.67,0.063]
[1738907248367,24.09689068,192.68,192.67,0.063]
[1738907249366,37.50873921,192.68,192.67,0.063]
[1738907250476,36.50873921,192.68,192.67,0.063]
[1738907250879,23.09689068,192.68,192.67,0.063]
[1738907251273,26.17689068,192.68,192.67,0.063]
[1738907252989,21.84591068,192.68,192.67,0.063]
[1738907253202,16.65601068,192.68,192.67,0.063]
[1738907253390,36.667,192.71,192.67,0.063]
[1738907253391,17.73703528,192.71,192.67,0.063]
[1738907253566,0.3804854,192.7,192.67,0.063]
[1738907253765,16.53052068,192.7,192.67,0.063]
[1738907253964,36.15003528,192.69,192.67,0.063]
[1738907255683,20.0,192.68,192.67,0.063]
[1738907258271,36.65601068,192.68,192.67,0.063]
[1738907258478,41.78326186,192.68,192.67,0.063]
[1738907258781,43.78326186,192.68,192.67,0.063]
[1738907258980,41.78326186,192.68,192.67,0.063]
[1738907260486,42.78326186,192.68,192.67,0.063]
[1738907260676,49.43771696,192.68,192.67,0.063]
[1738907262164,50.43771696,192.68,192.67,0.063]
[1738907262588,49.43771696,192.68,192.67,0.063]
[1738907262784,49.31222696,192.68,192.67,0.063]
[1738907263382,43.74184156,192.68,192.67,0.063]
[1738907263990,23.80449038,192.68,192.67,0.063]
[1738907267779,16.15003528,192.68,192.67,0.063]
[1738907271493,30.41188272,192.68,192.67,0.063]
[1738907271796,37.03252451,192.68,192.67,0.063]
[1738907272384,38.03252451,192.68,192.67,0.063]
[1738907273181,69.03252451,192.68,192.67,0.063]
[1738907273799,36.90703451,192.68,192.67,0.063]
[1738907275897,16.15003528,192.68,192.67,0.063]
[1738907279304,0.3804854,192.72,192.67,0.063]
[1738907279305,16.15003528,192.72,192.67,0.063]
[1738907279512,0.03,192.73,192.67,16.21303528]
[1738907279687,0.03,192.73,192.69,16.15003528]
[1738907280406,0.03,192.73,192.7,16.15003528]
[1738907281216,0.03,192.73,192.69,5.1896]
[1738907281684,16.15003528,192.72,192.67,5.2529]
[1738907282810,16.15003528,192.71,192.67,5.2529]
[1738907283187,16.15003528,192.71,192.67,0.063]
[1738907284608,16.18003528,192.73,192.67,0.063]
[1738907284994,0.03,192.73,192.67,13.47484853]
[1738907285200,0.03,192.73,192.69,16.15003528]
[1738907285403,0.03,192.73,192.67,29.62488381]
[1738907286495,0.03,192.73,192.68,5.1899]
[1738907288507,0.03,192.73,192.68,21.33993528]
[1738907288711,0.03,192.73,192.7,5.1894]
[1738907288895,0.03,192.73,192.71,16.15003528]
[1738907289595,0.03,192.73,192.72,16.15003528]
[1738907290004,0.03,192.73,192.72,29.56188381]
[1738907291524,0.03,192.73,192.72,34.75068381]
[1738907294320,0.03,192.75,192.74,0.12549]
[1738907294516,0.0001,192.75,192.74,146.59095217]
[1738907294713,0.0001,192.75,192.74,146.81286381]
[1738907295595,0.0001,192.75,192.74,152.00116381]
[1738907295819,0.0001,192.75,192.74,152.25214381]
[1738907296229,20.0,192.86,192.77,0.25098]
[1738907296438,0.03,192.88,192.83,16.15003528]
[1738907296640,20.0,192.87,192.83,16.15003528]
[1738907297125,0.03,192.88,192.85,16.15003528]
[1738907297709,0.03,192.88,192.85,5.1852]
[1738907298716,0.03,192.88,192.86,16.15003528]
[1738907299624,0.03,192.88,192.87,13.41184853]
[1738907299834,0.03,192.88,192.87,34.74668381]
[1738907300127,0.03,192.88,192.84,115.90309634]
[1738907300128,0.03,192.88,192.85,16.15003528]
[1738907300332,0.03,192.88,192.85,21.33513528]
[1738907301026,16.15003528,192.86,192.79,16.15003528]
[1738907301352,0.03,192.88,192.83,13.41184853]
[1738907301627,20.0,192.87,192.83,29.56188381]
[1738907301826,20.0,192.87,192.83,34.74758381]
[1738907302209,0.03,192.88,192.84,16.15003528]
[1738907303012,20.03,192.88,192.84,16.15003528]
[1738907303210,0.03,192.88,192.84,16.15003528]
[1738907303413,0.03,192.88,192.85,5.1853]
[1738907304022,0.03,192.88,192.86,13.41184853]
[1738907304806,0.03,192.88,192.87,5.1848]
[1738907307232,0.03,192.88,192.86,18.59684853]
[1738907308241,0.03,192.88,192.87,29.56188381]
[1738907309232,0.03,192.88,192.86,21.33503528]
[1738907311624,0.03,192.88,192.86,5.185]
[1738907312641,0.03,192.88,192.86,5.12235117]
[1738907314140,0.03,192.88,192.85,13.41184853]
[1738907314340,0.03,192.88,192.84,5.1855]
[1738907314550,16.18003528,192.88,192.84,5.1855]
[1738907314842,0.03,192.88,192.84,18.59734853]
[1738907317446,10.36803442,192.88,192.81,10.58901442]
[1738907317743,10.33803442,192.86,192.8,195.463]
[1738907317956,10.33803442,192.85,192.8,195.463]
[1738907318121,10.33803442,192.83,192.76,11.86173442]
[1738907318445,10.33803442,192.82,192.77,5.1873]
[1738907318645,16.16675843,192.82,192.76,13.41184853]
[1738907318822,16.16675843,192.83,192.76,13.41184853]
[1738907319238,16.16675843,192.84,192.77,13.41184853]
[1738907319848,16.16675843,192.84,192.78,13.41184853]
[1738907320833,16.16675843,192.84,192.78,18.59884853]
[1738907321423,20.0,192.83,192.78,18.59884853]
[1738907323660,36.16675843,192.83,192.78,18.59884853]
[1738907323953,36.16675843,192.83,192.76,5.1875]
[1738907325933,36.16675843,192.83,192.77,13.41184853]
[1738907326129,36.16675843,192.83,192.77,29.57860696]
[1738907326854,36.16675843,192.83,192.77,13.41184853]
[1738907328046,36.16675843,192.83,192.77,18.59914853]
[1738907328554,36.16675843,192.83,192.77,18.66214853]
[1738907329851,20.0,192.84,192.77,34.82890696]
[1738907330642,16.16675843,192.83,192.77,5.2503]
[1738907331743,16.16675843,192.83,192.77,0.063]
[1738907336040,16.16675843,192.85,192.78,13.41184853]
[1738907337359,20.0,192.84,192.8,29.57860696]
[1738907338661,20.0,192.85,192.81,5.1864]
[1738907339571,20.0,192.85,192.81,15.52698919]
[1738907339734,10.37058919,192.88,192.82,13.41184853]
[1738907339940,0.03,192.88,192.83,5.1859]
[1738907340142,0.03,192.88,192.84,13.41184853]
[1738907340339,0.03,192.86,192.84,13.41184853]
[1738907341261,0.03,192.86,192.85,18.59714853]
[1738907345573,0.03,192.86,192.82,115.0]
[1738907345884,10.34058919,192.84,192.78,5.187]
[1738907346171,10.34058919,192.83,192.78,5.187]
[1738907346956,10.34058919,192.84,192.78,5.187]
[1738907347553,30.34058919,192.83,192.78,5.187]
[1738907348467,20.0,192.83,192.78,5.187]
[1738907348656,10.34058919,192.85,192.79,13.41184853]
[1738907349261,20.0,192.85,192.79,13.41184853]
[1738907349670,0.03,192.86,192.81,13.41184853]
[1738907350668,0.03,192.86,192.81,18.59804853]
[1738907350868,20.03,192.86,192.81,18.59804853]
[1738907352284,0.03,192.86,192.83,13.41184853]
[1738907352760,0.03,192.86,192.82,13.41184853]
[1738907353376,0.03,192.86,192.81,15.58978919]
[1738907353377,0.03,192.86,192.83,5.1859]
[1738907355378,0.03,192.86,192.81,0.31398]
[1738907355674,0.03,192.86,192.81,5.50038]
[1738907360180,0.03,192.86,192.82,10.34058919]
[1738907360375,0.03,192.86,192.83,5.1859]
[1738907361254,0.03,192.86,192.84,13.41184853]
[1738907362476,0.03,192.86,192.84,18.59724853]
[1738907364279,0.03,192.86,192.85,23.75243772]
[1738907364585,0.03,192.86,192.85,13.41184853]
[1738907365672,0.03,192.86,192.85,18.59714853]
[1738907382412,0.03,192.86,192.81,115.31398]
[1738907382628,0.03,192.86,192.82,5.1859]
[1738907383314,10.34058919,192.85,192.81,128.47484853]
[1738907383710,10.34058919,192.85,192.81,133.66124853]
[1738907383932,0.03,192.86,192.81,133.66124853]
[1738907385116,0.03,192.86,192.82,13.41184853]
[1738907386529,0.03,192.86,192.82,5.186]
[1738907388820,0.03,192.86,192.81,5.2494]
[1738907392022,1.6006,192.86,192.81,11.46110067]
[1738907393221,1.6006,192.86,192.82,18.59774853]
[1738907398809,11.94118919,192.86,192.81,5.2494]
[1738907400105,1.6006,192.86,192.81,5.2494]
[1738907400520,11.94118919,192.86,192.81,5.2494]
[1738907400841,10.34058919,192.83,192.81,0.063]
[1738907401228,16.38708919,192.85,192.81,0.063]
[1738907402328,1.6006,192.86,192.81,10.40358919]
[1738907402522,1.6006,192.86,192.82,5.1861]
[1738907402924,10.34058919,192.85,192.82,5.1861]
[1738907403113,10.34058919,192.84,192.81,0.063]
[1738907403313,10.34058919,192.82,192.81,0.063]
[1738907404329,30.34058919,192.83,192.81,0.063]
[1738907406914,10.34058919,192.84,192.81,0.063]
[1738907407139,1.6006,192.86,192.81,0.063]
[1738907407341,0.03,192.86,192.82,10.34058919]
[1738907408337,0.03,192.86,192.83,5.1859]
[1738907408516,0.03,192.86,192.84,23.75243772]
[1738907408835,0.03,192.88,192.85,24.00341772]
[1738907409134,0.03,192.88,192.87,24.00341772]
[1738907409332,0.03,192.88,192.87,24.78093002]
[1738907409834,0.03,192.91,192.88,2.0]
[1738907410046,15.35578442,192.97,192.91,0.12549]
[1738907410218,0.03,193.01,192.92,25.03162838]
[1738907410219,0.0001,192.93,192.92,25.03162838]
[1738907410419,0.0001,192.93,192.92,146.21502838]
[1738907410639,0.03,193.01,192.93,13.66282853]
[1738907410938,0.03,193.01,192.99,10.34058919]
[1738907411126,0.03,193.01,192.98,10.34058919]
[1738907411540,0.03,193.01,192.97,10.34058919]
[1738907411839,10.34058919,193.0,192.96,115.0]
[1738907412019,10.34058919,192.99,192.96,115.0]
[1738907412220,10.34058919,192.98,192.91,10.34058919]
[1738907412528,0.03,192.93,192.91,10.34058919]
[1738907412725,0.03,192.93,192.92,13.41184853]
[1738907412942,0.03,192.93,192.92,23.75243772]
[1738907413554,0.03,192.93,192.92,24.00341772]
[1738907416142,0.03,192.93,192.92,24.78068576]
[1738907416438,0.03,193.01,192.94,13.41184853]
[1738907416619,0.03,193.01,192.98,13.41184853]
[1738907417513,0.03,193.01,192.99,5.1816]
[1738907417914,0.03,193.01,193.0,13.41184853]
[1738907419122,0.03,193.01,193.0,18.59314853]
[1738907420229,0.03,193.01,193.0,28.93373772]
[1738907420425,0.03,193.01,193.0,18.59314853]
[1738907421218,0.03,193.01,193.0,29.18471772]
[1738907421640,0.03,193.01,193.0,18.84412853]
[1738907422534,0.03,193.01,193.0,18.59314853]
[1738907422724,0.03,193.01,192.96,12.9558]
[1738907422725,0.03,193.01,192.96,125.34058919]
[1738907422925,10.34058919,192.99,192.91,15.52408919]
[1738907423130,10.34058919,192.98,192.91,130.52408919]
[1738907423333,10.34058919,192.98,192.92,13.41184853]
[1738907423528,10.34058919,192.99,192.92,13.41184853]
[1738907423929,10.34058919,192.99,192.93,5.1832]
[1738907424849,10.34058919,192.99,192.93,5.2462]
[1738907425042,10.34058919,192.94,192.93,0.063]
[1738907426039,10.34058919,192.96,192.93,0.063]
[1738907426241,20.0,192.94,192.93,0.063]
[1738907427244,10.34058919,192.97,192.93,0.063]
[1738907427557,30.34058919,192.95,192.93,0.063]
[1738907428844,20.0,192.95,192.93,0.063]
[1738907431059,30.34058919,192.95,192.93,0.063]
[1738907431239,10.34058919,192.94,192.93,0.063]
[1738907433344,15.52348919,192.94,192.93,0.063]
[1738907433729,15.52348919,192.94,192.82,5.2489]
[1738907433730,0.12549,192.93,192.82,5.2489]
[1738907433934,10.34058919,192.88,192.82,5.2489]
[1738907434339,10.34058919,192.88,192.83,13.41184853]
[1738907434748,10.34058919,192.9,192.83,13.41184853]
[1738907434948,10.34058919,192.9,192.84,5.1856]
[1738907436473,20.0,192.89,192.84,15.52618919]
[1738907437836,10.34058919,192.9,192.84,5.1856]
[1738907438643,8.28887185,192.89,192.84,5.1856]
[1738907440560,10.34058919,192.9,192.84,5.1856]
[1738907441148,10.34058919,192.89,192.84,5.1856]
[1738907442964,10.34058919,192.9,192.84,5.1856]
[1738907444366,10.34058919,192.91,192.84,15.52618919]
[1738907444956,20.0,192.91,192.85,23.75243772]
[1738907446062,30.34058919,192.91,192.85,18.59714853]
[1738907447469,10.34058919,192.92,192.85,28.93773772]
[1738907448274,30.34058919,192.93,192.85,28.93773772]
[1738907449370,30.34058919,192.93,192.85,29.00073772]
[1738907449860,20.0,192.93,192.88,13.41184853]
[1738907450047,30.37058919,192.94,192.88,13.41184853]
[1738907450246,30.34058919,192.93,192.87,5.1848]
[1738907450483,10.34058919,192.91,192.86,5.185]
[1738907451351,5.2131,192.94,192.86,5.185]
[1738907451352,10.34058919,192.92,192.86,5.185]
[1738907454372,10.34058919,192.91,192.86,5.185]
[1738907460959,10.37058919,192.92,192.86,5.185]
[1738907461982,0.03,192.92,192.88,15.52508919]
[1738907462358,0.03,192.92,192.88,5.1845]
[1738907463586,0.03,192.92,192.89,24.00341772]
[1738907463769,0.03,192.92,192.91,13.41184853]
[1738907464078,0.03,192.92,192.91,23.75243772]
[1738907465764,0.03,192.92,192.91,29.18711772]
[1738907466172,0.03,192.92,192.91,31.56021994]
[1738907466378,0.0001,192.92,192.91,147.81119994]
[1738907466568,0.0001,192.92,192.91,148.03389772]
[1738907468572,0.0001,192.92,192.91,145.78291772]
[1738907469179,0.0001,192.92,192.91,135.19134853]
[1738907469577,0.0001,192.92,192.91,20.19134853]
[1738907469791,0.0001,192.92,192.91,18.59554853]
[1738907470888,0.0001,192.92,192.91,28.93613772]